Cogmind - Beta 10.2 *** ADVENTURER MODE // 2021.07.19 @ 18:30:59 Player: InspectorNorse Result: Destroyed by P-70 Sage with High-powered Shock Rifle Performance ------------- Evolutions (3) 1500 Regions Visited (4) 800 Robots Destroyed (60) 300 Value Destroyed (2112) 2112 Prototype IDs (3) 60 Alien Tech Used (0) 0 Bonus (0) 0 TOTAL SCORE: 4772 Bonus ------- None Cogmind --------- Core Integrity 0/700 Matter 103/300 Energy 158/160 System Corruption 4% Temperature Cool (168) Movement Walking (120) Location -7/Factory Parts ------- > --- POWER (2) -------- Light Nuclear Core > --- PROPULSION (3) --- Aluminum Leg Aluminum Leg Aluminum Leg > --- UTILITY (5) ------ Medium Storage Unit > --- WEAPON (3) ------- Flak Gun > --- INVENTORY (8) ---- Reinforced Deuterium Engine Light Treads Peak State ------------ > --- POWER ------------ Light Nuclear Core Cooled Deuterium Engine > --- PROPULSION ------- Aluminum Leg Aluminum Leg Carbon-fiber Leg > --- UTILITY ---------- Improved Heat Sink Medium Storage Unit Advanced Sensor Array Target Analyzer > --- WEAPON ----------- Gatling Laser Flak Gun > --- INVENTORY -------- Reinforced Deuterium Engine Light Treads Aluminum Leg Particle Gun Particle Cannon [Rating: 32] Favorites ----------- Power Light Nuclear Core Engine Ion Engine Power Core Light Nuclear Core Propulsion Aluminum Leg Treads Light Treads Leg Aluminum Leg Hover Unit Improved Hover Unit Utility Medium Storage Unit Device ECM Suite Storage Medium Storage Unit Processor Target Analyzer Protection Hardened Light Armor Plating Weapon Pulse Rifle Energy Gun Pulse Rifle Energy Cannon Ion Cannon Ballistic Gun Light Assault Rifle Impact Weapon Heavy Mace Build | -11 -10 -9 -8 -7 ------- Run | Scr Mat Mat Mat Fac Slots Evolved 6 | . . 2 2 2 Power 1 | . . 1 . . Propulsion 1 | . . . 1 . Utility 3 | . . . 1 2 Weapon 1 | . . 1 . . Parts Attached 75 | 5 6 14 8 42 Power 11 | 1 . 1 2 7 Engine 7 | 1 . 1 2 3 Core 4 | . . . . 4 Reactor . | . . . . . Propulsion 16 | 2 . 3 1 10 Treads 4 | 2 . . . 2 Leg 11 | . . 3 . 8 Wheel . | . . . . . Hover 1 | . . . 1 . Flight . | . . . . . Utility 17 | 1 1 4 4 7 Device 9 | . 1 2 1 5 Storage 3 | 1 . . 1 1 Processor 1 | . . . . 1 Hackware . | . . . . . Protection 4 | . . 2 2 . Artifact . | . . . . . Weapon 31 | 1 5 6 1 18 Energy Gun 19 | . 4 4 1 10 Energy Cannon 2 | . . . . 2 Ballistic Gun 8 | 1 1 1 . 5 Ballistic Cannon . | . . . . . Launcher . | . . . . . Special Weapon . | . . . . . Impact Weapon 2 | . . 1 . 1 Slashing Weapon . | . . . . . Piercing Weapon . | . . . . . Special Melee Weapon . | . . . . . Unidentified Prototypes 3 | . . . . 3 Parts Lost 40 | . 8 1 1 30 Power 6 | . 1 1 . 4 Propulsion 8 | . 2 . . 6 Utility 8 | . . . 1 7 Weapon 18 | . 5 . . 13 Highest Loss Streak 11 | . 8 1 1 11 Average Slot Usage (%) 73 | . 77 76 81 68 Engine 8 | . 13 5 13 6 Core 2 | . . . . 5 Treads 9 | . 26 . . 5 Leg 9 | . . 17 18 10 Device 7 | . 8 12 2 6 Storage 10 | . 14 5 7 10 Protection 2 | . . 4 12 . Energy Gun 7 | . 1 18 7 6 Ballistic Gun 7 | . 12 2 9 6 Impact Weapon 4 | . . 10 9 2 Naked Turns . | . . . . . Heaviest Build 40 | 11 13 20 34 40 Greatest Support 40 | 40 40 23 23 40 Greatest Overweight (x) 6 | . 3 4 1 6 Average Overweight (x) . | . . . . . Largest Inventory Capacity 8 | 6 6 6 8 8 Average Capacity 6 | 5 6 4 7 8 Most Carried 7 | 2 2 5 5 7 Average Carried 2 | . . 2 2 4 Final Capacity 8 | 6 6 4 8 8 Final Carried 4 | . . 1 4 2 Class Distribution -------------------- 51% | Mutant 39% | Scavenger-Mutant 7% | Scavenger-Skirmisher Dominant Class ---------------- Mutant | -10/Materials Mutant | -9/Materials Scavenger-Mutant | -8/Materials Scavenger-Mutant | -7/Factory Resources | -11 -10 -9 -8 -7 ----------- Run | Scr Mat Mat Mat Fac Matter Collected 1129 | 212 169 202 81 465 Remotely 112 | . . 106 6 . Salvage Created 2302 | . 223 278 159 1642 Parts 115 | . 9 12 19 75 Haulers Intercepted . | . . . . . Recyclers Shooed . | . . . . . Parts Field Recycled . | . . . . . Retrieved Matter . | . . . . . Parts Self-Destructed . | . . . . . Prevented . | . . . . . Kills | -11 -10 -9 -8 -7 ------- Run | Scr Mat Mat Mat Fac Combat Hostiles Destroyed 52 | . 6 9 5 32 Guns 44 | . 6 9 5 24 Cannons 7 | . . . . 7 Classes Destroyed 10 | . 3 2 1 4 Worker 3 | . . . . 3 Builder 1 | . . . 1 . Operator 1 | . . 1 . . Watcher 3 | . 1 . 2 . Swarmer 13 | . 2 3 4 4 Grunt 24 | . 4 4 . 16 Brawler 2 | . . . . 2 Sentry 10 | . . 2 1 7 Hunter 1 | . . . . 1 Programmer 2 | . . . . 2 Best Kill Streak 6 | . 2 3 4 6 Combat Bots Only 6 | . 2 3 4 6 Max Kills in Single Turn 2 | . 1 1 2 1 Gunslinging . | . . . . . Exploded . | . . . . . Melee . | . . . . . Uniques/NPCs Destroyed . | . . . . . Combat | -11 -10 -9 -8 -7 -------- Run | Scr Mat Mat Mat Fac Damage Taken 4752 | . 989 353 208 3202 Core 1012 | . 223 46 32 711 Absorbed by Shields . | . . . . . Core Remaining (%) 73 | 100 10 88 94 . Volleys Fired 209 | . 52 29 20 108 Largest 3 | . 2 2 2 3 Hottest 168 | . 112 126 83 168 Shots Fired 337 | . 57 57 35 188 Gun 307 | . 57 57 35 158 Cannon 30 | . . . . 30 Launcher . | . . . . . Special . | . . . . . Kinetic 157 | . 40 10 20 87 Thermal 170 | . 17 47 15 91 Explosive . | . . . . . Electromagnetic 10 | . . . . 10 Robot Hit Streak 25 | . 17 10 12 25 Robot Miss Streak 3 | . 3 2 1 3 Penetration Max . | . . . . . Secondary Targets 9 | . . 2 2 5 Max Gunslinging Chain 1 | . . 1 1 1 Shots Hit Robots 268 | . 40 41 25 162 Core Hits 162 | . 13 15 12 122 Critical Hits 4 | . 1 . . 3 Critical Kills 2 | . . . . 2 Critical Parts Destroyed 2 | . 1 . . 1 Melee Attacks . | . . . . . Impact . | . . . . . Slashing . | . . . . . Piercing . | . . . . . Sneak Attacks . | . . . . . Combat Hostiles . | . . . . . Follow-up Attacks . | . . . . . Damage Inflicted 4470 | . 546 592 362 2970 Guns 4044 | . 546 592 362 2544 Cannons 426 | . . . . 426 Explosions . | . . . . . Melee . | . . . . . Ramming . | . . . . . Kinetic 1760 | . 344 31 101 1284 Thermal 2510 | . 202 561 261 1486 Explosive . | . . . . . Electromagnetic 200 | . . . . 200 Impact . | . . . . . Slashing . | . . . . . Piercing . | . . . . . Highest Corruption 4 | . . . . 4 Average Corruption 2 | . . . . 2 Corruption Purged . | . . . . . Effects 23 | . . . . 23 Message Errors 1 | . . . . 1 Matter Fused 5 | . . . . 5 Heat Flow Errors 4 | . . . . 4 Energy Discharges 1 | . . . . 1 Data Loss (minor) 4 | . . . . 4 Targeting Errors 6 | . . . . 6 Weapon Failures 2 | . . . . 2 Overload Shots . | . . . . . Overflow Damage 1 | . . . . 1 Projectiles 1 | . . . . 1 Explosions . | . . . . . Melee . | . . . . . Knockbacks . | . . . . . Impact . | . . . . . Kinetic . | . . . . . Secondary . | . . . . . Self-Inflicted Damage . | . . . . . Shots . | . . . . . Rammed . | . . . . . Targets Rammed . | . . . . . Kicked . | . . . . . Crushed . | . . . . . Highest Temperature 541 | . 468 541 229 426 Average Temperature 133 | . 293 155 60 116 Received Heat Transfer 1986 | . 540 117 27 1302 Effects 25 | . 6 5 . 14 Shutdowns 5 | . 1 1 . 3 Energy Bleed 5 | . . 1 . 4 Interference 9 | . 2 2 . 5 Matter Decay 2 | . 1 . . 1 Short Circuit 2 | . 2 . . . Damage (minor) 2 | . . 1 . 1 Siege Activations . | . . . . . Robots Corrupted . | . . . . . Combat Hostiles . | . . . . . Parts Fried . | . . . . . Impact Corruptions . | . . . . . Robots Melted 1 | . . . . 1 Combat Hostiles 1 | . . . . 1 Parts Melted 10 | . . 2 2 6 Heat Transferred 5441 | . 518 1221 555 3147 Parts Sabotaged . | . . . . . Parts Stolen . | . . . . . Parts Stripped . | . . . . . Power Chain Reactions . | . . . . . Missiles Intercepted . | . . . . . Alert | -11 -10 -9 -8 -7 ------- Run | Scr Mat Mat Mat Fac Peak Influence 270 | . 187 234 196 270 Initial 76 | . . 52 37 76 Average 91 | . 50 117 132 98 Maximum Alert Level 1 | . . 1 . 1 Low Security (%) 92 | 100 100 83 100 89 Level 1 7 | . . 16 . 10 Level 2 . | . . . . . Level 3 . | . . . . . Level 4 . | . . . . . Level 5 . | . . . . . High Security . | . . . . . Max Security . | . . . . . Squads Dispatched 13 | . 2 1 . 10 Investigation 4 | . 2 . . 2 Extermination 1 | . . . . 1 Reinforcement 2 | . . 1 . 1 Assault . | . . . . . Garrison 6 | . . . . 6 Intercept . | . . . . . Construction Impeded . | . . . . . Haulers Reinforced 1 | . . . . 1 Stealth | -11 -10 -9 -8 -7 --------- Run | Scr Mat Mat Mat Fac Distress Signals 4 | . 3 . . 1 Communications Jammed . | . . . . . Distress Signals . | . . . . . Times Spotted 81 | . 26 13 8 34 Peak Tracking Total 6 | . 6 4 4 6 Tactical Retreats 5 | . 5 . . . Traps | -11 -10 -9 -8 -7 ------- Run | Scr Mat Mat Mat Fac Traps Triggered 3 | . 1 . . 2 Indirectly . | . . . . . Trap Hack Attempts . | . . . . . Triggered . | . . . . . Disarmed . | . . . . . Reprogrammed . | . . . . . Reused . | . . . . . Traps Extracted . | . . . . . Installed . | . . . . . Triggered . | . . . . . Machines | -11 -10 -9 -8 -7 ---------- Run | Scr Mat Mat Mat Fac Machines Disabled . | . . . . . Max in Single Turn . | . . . . . Machines Sabotaged . | . . . . . Garrisons Compromised . | . . . . . Overloaded Fab Kills . | . . . . . Fab Network Shutdowns . | . . . . . Hacking | -11 -10 -9 -8 -7 --------- Run | Scr Mat Mat Mat Fac Machines Accessed 10 | . 5 2 1 2 Terminals 5 | . 4 1 . . Fabricators . | . . . . . Repair Stations 3 | . . 1 1 1 Recycling Units 1 | . 1 . . . Scanalyzers 1 | . . . . 1 Garrison Access . | . . . . . Total Hacks 18 | . 8 2 2 6 Successful 13 | . 6 2 2 3 Failed 5 | . 2 . . 3 Catastrophic 1 | . . . . 1 Database Lockouts . | . . . . . Manual . | . . . . . Terminals 6 | . 5 1 . . Fabricators . | . . . . . Repair Stations 5 | . . 1 2 2 Recycling Units 3 | . 3 . . . Scanalyzers 4 | . . . . 4 Garrison Access . | . . . . . Terminal Hacks 4 | . 3 1 . . Locate Traps 1 | . 1 . . . Dispatch Records 1 | . 1 . . . Maintenance Status 1 | . . 1 . . Assault Status 1 | . 1 . . . Fabricator Hacks . | . . . . . Repair Station Hacks 3 | . . 1 2 . Scan Component 2 | . . 1 1 . Repair 1 | . . . 1 . Recycling Unit Hacks 3 | . 3 . . . Process 1 | . 1 . . . Report Inventory 1 | . 1 . . . Retrieve Components 1 | . 1 . . . Scanalyzer 3 | . . . . 3 Insert Component 2 | . . . . 2 Analyze 1 | . . . . 1 Garrison Access Hacks . | . . . . . Unauthorized Hacks . | . . . . . Terminals . | . . . . . Fabricators . | . . . . . Repair Stations . | . . . . . Recycling Units . | . . . . . Scanalyzers . | . . . . . Garrison Access . | . . . . . Data Cores Recovered 1 | . . 1 . . Used . | . . . . . Hacking Detections 4 | . 1 1 . 2 Full Trace Events 3 | . 1 . . 2 Feedback Events 1 | . . . . 1 Corruption 1 | . . . . 1 Feedback Blocked . | . . . . . Robot Schematics Acquired . | . . . . . Robots Built . | . . . . . Matter . | . . . . . Time . | . . . . . Total Robot Build Rating . | . . . . . Part Schematics Acquired 1 | . . . . 1 Parts Built . | . . . . . Matter . | . . . . . Time . | . . . . . Total Part Build Rating . | . . . . . Parts Repaired 1 | . . . 1 . Time 38 | . . . 38 . Parts Recycled . | . . . . . Recycled Matter 1 | . 1 . . . Retrieved Matter . | . . . . . Retrieved Components . | . . . . . Parts Scanalyzed 2 | . . . . 2 Part Schematics Acquired 1 | . . . . 1 Parts Damaged . | . . . . . Bothacking | -11 -10 -9 -8 -7 ------------ Run | Scr Mat Mat Mat Fac Used RIF Installer . | . . . . . Robots Hacked . | . . . . . Non-combat . | . . . . . Combat . | . . . . . Robot Hacks Applied . | . . . . . Relay Couplers Released . | . . . . . Robots Rewired . | . . . . . Allies Hacked . | . . . . . Hacks Repelled . | . . . . . Allies | -11 -10 -9 -8 -7 -------- Run | Scr Mat Mat Mat Fac Total Allies . | . . . . . Largest Group . | . . . . . Highest-Rated Group . | . . . . . Highest-Rated Ally . | . . . . . Total Orders . | . . . . . Ally Attacks . | . . . . . Total Damage . | . . . . . Kills . | . . . . . Allies Corrupted . | . . . . . Allies Melted . | . . . . . Intel | -11 -10 -9 -8 -7 ------- Run | Scr Mat Mat Mat Fac Robot Analysis Total . | . . . . . Derelict Logs Recovered . | . . . . . Drone Launches . | . . . . . Drone Recoveries . | . . . . . Exploration | -11 -10 -9 -8 -7 ------------- Run | Scr Mat Mat Mat Fac Turns Passed 2929 | 58 749 493 319 1310 Spaces Moved 1472 | 35 391 273 176 597 Core 100 | 6 27 42 . 25 Treads 639 | 29 364 . . 246 Legs 733 | . . 231 176 326 Wheels . | . . . . . Hover . | . . . . . Flight . | . . . . . Fastest Speed 50 | 50 100 100 120 120 Average Speed 148 | 141 157 129 140 152 Slowest Speed 350 | 160 200 250 150 350 Overloaded Moves . | . . . . . Propulsion Burnouts . | . . . . . Robots Hopped . | . . . . . Cave-ins Triggered . | . . . . . Exploration Rate (%) 24 | 3 69 25 14 13 Regions Visited 4 Branch Regions . Pre-discovered Areas . | . . . . . Known Exits Taken . | . . . . . Unknown Exits Taken 4 | 1 1 1 1 . Scrap Searched . | . . . . . Spaces Dug . | . . . . . Terrain Destroyed . | . . . . . Melee . | . . . . . Projectile . | . . . . . AOE . | . . . . . Terrain Rammed . | . . . . . Walls Destroyed . | . . . . . Machines Disabled . | . . . . . Actions | -11 -10 -9 -8 -7 --------- Run | Scr Mat Mat Mat Fac Total 1902 | 44 468 356 215 819 Wait 55 | . 15 18 3 19 Move 1468 | 34 390 272 175 597 Hop . | . . . . . Pick Up 71 | 5 5 15 9 37 Fast Attach . | . . . . . Attach 50 | 5 5 6 6 28 Detach 2 | . . . . 2 Swap 25 | . 1 8 2 14 Drop 22 | . . 8 . 14 Fire 209 | . 52 29 20 108 Melee . | . . . . . Ram . | . . . . . Kick . | . . . . . Crush . | . . . . . Escape Stasis . | . . . . . Rewire . | . . . . . Trap . | . . . . . Miscellaneous . | . . . . . Route ------- -11/Scrapyard -10/Materials (discovered 2 exits: *Mat x2) -9/Materials -8/Materials -7/Factory History --------- Turn | Location | Event 4 | -11/Scrapyard | Discovered new exit (range 15) 59 | -11/Scrapyard | Entered Materials 307 | -10/Materials | Build established: Mutant 457 | -10/Materials | Discovered new exit (range 7) 762 | -10/Materials | Core integrity fell below 50% 794 | -10/Materials | Discovered new exit (range 15) 800 | -10/Materials | Core integrity fell below 20% 808 | -10/Materials | Entered another Materials area 808 | -9/Materials | Evolved 2 slots: Power x1, Weapon x1 821 | -9/Materials | Lost 8 parts (1p2n5w) 1118 | -9/Materials | Discovered new exit (range 3) 1301 | -9/Materials | Entered another Materials area 1301 | -8/Materials | Evolved 2 slots: Propulsion x1, Utility x1 1553 | -8/Materials | Repaired Pulse Rifle 1602 | -8/Materials | Discovered new exit (range 5) 1620 | -8/Materials | Entered Factory 1620 | -7/Factory | Evolved 2 slots: Utility x2 1688 | -7/Factory | Build established: Scavenger-Mutant 2175 | -7/Factory | Garrison activated, responded to threat 2251 | -7/Factory | Lost 4 parts (1p1n2u) 2386 | -7/Factory | Lost 3 parts (1n1u1w) 2714 | -7/Factory | Garrison activated, responded to threat 2800 | -7/Factory | Lost 11 parts (1p3n2u5w) 2848 | -7/Factory | Core integrity fell below 50% 2867 | -7/Factory | Core integrity fell below 20% 2930 | -7/Factory | Destroyed by P-70 Sage with High-powered Shock Rifle Last Messages --------------- 02888_ K-01 Serf collects debris. 02890_ R-06 Scavenger collects Lgt. Ion Engine. 02892_ K-01 Serf collects debris. 02893_ Acquired Aluminum Leg. 02894_ Acquired 48 matter. 02895_ K-01 Serf destroyed. 02896_ K-01 Serf collects debris. 02898_ R-06 Scavenger collects Imp. Heat Sink. 02898_ U-05 Engineer lays Concrete. 02899_ Acquired Aluminum Leg. 02899_ U-05 Engineer lays Concrete. 02899_ K-01 Serf collects debris. 02902_ R-06 Scavenger collects Lgt. Ion Engine. 02902_ Acquired Lgt. Nuclear Core. 02904_ K-01 Serf collects debris. 02906_ P-70 Sage resets R-06 Scavenger, system corruption cleaned. 02906_ Acquired Aluminum Leg. 02909_ K-01 Serf collects debris. 02916_ Lgt. Ion Engine destroyed. 02930_ System corrupted: Heat flow error (+168). Map ----- +----------------------------------------------------+ | ?????????????????????????????????????????????????? | | ?????????????????????????????????????????????????? | | ?????????????????????????????????????????????????? | | ?????????????????????????????????????????????????? | | ?????????????????????????????????????????????????? | | ?????????????????????????????????????????????????? | | ?????????????????????????????????????????????????? | | ???????????????????????????????????????????????? | | ???????????????????????????????????????????????? | | ???????????????????????????????????????????????? | | ???????????????????????????????????????????????# | | ???????????????????????????#???????????????????# | | ???????????????????????????# ??? ??????????????# | | ???????????????????????????# ? #?????????????# | | ???????????????????????????# """ #?????????????# | | ??????????? ??????????????? "R ??????????????# | | ?????????? ?????????????? """ ??????????????# | | ????????? ??###########? ""???????????????# | | ????????? ## #? ???????????????# | | ???????? ###+################# | | ???????? =% ! *%= kt | | ???????? [% %!! % % | | ???????? u [%*%[ ! =*=% % % % | | ???????? !! [=%%*! % | | | ???????? =%=p%!=%!%= | | ???????? @ ##########+########## | | ?????????####+#### g #??????? ???????# | | ?????????????????#####+#####????? ?????# | | ???????????????????? ????????? ???# | | ?????????????????? ?????????# ! #??# | | ????????????????? ???????????# ! #??# | | ????????????????# ????????????# #??# | | ????????????????#?????????????# #??# | | ??????????????????????????????# #??# | | ??????????????????????????????# #??# | | ??????????????????????????????# #?## | | ??????????????????????????????# +?? | | ??????????????????????????????###############?## | | ???????????????????????????????????????????????# | | ???????????????????????????????????????????????# | | ???????????????????????????????????????????????# | | ???????????????????????????????????????????????# | | ???????????????????????????????????????????????# | | ???????????????????????????????????????????????+ | | ???????????????????????????????????????????????# | | ???????????????????????????????????????????????# | | ???????????????????????????????????????????????## | | ????????????????????????????????????????????????# | | ????????????????????????????????????????????????# | | ????????????????????????????????????????????????# | +----------------------------------------------------+ Best States ------------- Heat Dissipation 48 Energy Generation 27 Energy Capacity 470 Matter Stores 300 Matter Capacity 300 Sight Range 16 Robot Scan Range 16 Terrain Scan Range 20 Terrain Scan Density 10 ECM Strength 1 Armor Coverage 375 Resistance: KI 20 Resistance: TH 20 Resistance: EX 45 Resistance: EM 20 Resistance: I 20 Resistance: S 20 Resistance: P 20 Evasion (%) 40 Target Analysis 5 Recoil Reduction 4 Offensive Hacking 10 Item Schematics ----------------- Lgt. Assault Rifle | -7/Factory | Scanalyzed Robot Schematics ------------------ None Fabricated ------------ Nothing Alien Tech Used ----------------- None Achievements -------------- It's Just You Use The Force Challenges ------------ None Game ------ Seed DeuteriumPoweredBuckler Manual? 0 Play Time 00:42:38 Cumulative 2.9 hours Start 2021.07.14 @ 18:36:25 End 2021.07.19 @ 18:30:59 Sessions 9 Manual Loads 0 Difficulty Adventurer Special Mode None Game No. 7 Rogue 0 Adventurer 7 Explorer 0 Win Type - Total 0 Types 0/0/0/0/0/0/0/0/0 Lore% 4 Gallery% 8 Achievement% 8 Wizard Run 0 Options --------- ASCII 0 Keyboard 0 Movement Mouse Keybinds 0 Fullscreen 2 Font 24/Smallcaps Map View 76x50 Tactical HUD 1 Map Filters NONE Filters NONE Steam 1 RUN: 0b29c8c7-48ec-44a4-8390-926c61a44a0d